[Event "*** Titled Tuesday Blitz"]
[Site "Chess.com"]
[Date "2019.11.05"]
[Round "4"]
[White "vlad10898"]
[Black "HarutyunianTigranK"]
[Result "1-0"]
[WhiteElo "2666"]
[BlackElo "2800"]
[TimeControl "180+2"]
[EndTime "13:51:56 PST"]
[Termination "vlad10898 won by resignation"]

1. e4 {[%clk 0:03:01.9]} 1... e5 {[%clk 0:03:00.3]} 2. Nf3 {[%clk 0:03:02.7]}
2... Nc6 {[%clk 0:03:01.6]} 3. Bc4 {[%clk 0:03:03.3]} 3... Bc5 {[%clk
0:03:01.2]} 4. O-O {[%clk 0:03:04.2]} 4... Nf6 {[%clk 0:03:02.4]} 5. d3 {[%clk
0:03:05.3]} 5... d6 {[%clk 0:03:01]} 6. c3 {[%clk 0:03:04.5]} 6... a5 {[%clk
0:03:01.7]} 7. Nbd2 {[%clk 0:02:59]} 7... O-O {[%clk 0:02:58.4]} 8. Re1 {[%clk
0:02:40.4]} 8... Ng4 {[%clk 0:02:50.5]} 9. Re2 {[%clk 0:02:40.3]} 9... Kh8
{[%clk 0:02:51.3]} 10. h3 {[%clk 0:01:50]} 10... Nh6 {[%clk 0:02:51.2]} 11. Nf1
{[%clk 0:01:40.1]} 11... f5 {[%clk 0:02:52]} 12. Bg5 {[%clk 0:01:30.9]} 12...
Qd7 {[%clk 0:02:38.8]} 13. Bxh6 {[%clk 0:01:24.6]} 13... gxh6 {[%clk 0:02:38.8]}
14. exf5 {[%clk 0:01:25.9]} 14... Qxf5 {[%clk 0:02:32]} 15. Bd5 {[%clk
0:01:15.5]} 15... Qg6 {[%clk 0:02:27.3]} 16. d4 {[%clk 0:00:56.4]} 16... Bb6
{[%clk 0:02:21.1]} 17. Ng3 {[%clk 0:00:51.7]} 17... Bd7 {[%clk 0:01:55.4]} 18.
Kh2 {[%clk 0:00:45.3]} 18... Rae8 {[%clk 0:01:46.5]} 19. dxe5 {[%clk 0:00:35.8]}
19... Nxe5 {[%clk 0:01:23.8]} 20. Nxe5 {[%clk 0:00:32.8]} 20... dxe5 {[%clk
0:01:11.2]} 21. Be4 {[%clk 0:00:21.3]} 21... Qg7 {[%clk 0:01:09.3]} 22. f3
{[%clk 0:00:22.5]} 22... Rg8 {[%clk 0:01:06]} 23. Nf5 {[%clk 0:00:21.2]} 23...
Qf7 {[%clk 0:00:56.8]} 24. g4 {[%clk 0:00:18.5]} 24... h5 {[%clk 0:00:55]} 25.
Bd5 {[%clk 0:00:19.7]} 25... Be6 {[%clk 0:00:55]} 26. Bxe6 {[%clk 0:00:18.8]}
26... Rxe6 {[%clk 0:00:56.9]} 27. Qd5 {[%clk 0:00:18]} 27... hxg4 {[%clk
0:00:47.7]} 28. fxg4 {[%clk 0:00:19.4]} 28... Rxg4 {[%clk 0:00:37.3]} 29. Rxe5
{[%clk 0:00:20.6]} 29... Rg2+ {[%clk 0:00:19.4]} 30. Kxg2 {[%clk 0:00:17.1]}
30... Qg6+ {[%clk 0:00:09]} 31. Kh1 {[%clk 0:00:18]} 31... Qh5 {[%clk
0:00:03.2]} 32. Qd8+ {[%clk 0:00:19]} 1-0

[Event "*** Titled Tuesday Blitz"]
[Site "Chess.com"]
[Date "2019.11.05"]
[Round "4"]
[White "NemtsevIgor"]
[Black "codapbg94"]
[Result "1-0"]
[WhiteElo "2276"]
[BlackElo "2146"]
[TimeControl "180+2"]
[EndTime "13:52:01 PST"]
[Termination "NemtsevIgor won on time"]

1. d3 {[%clk 0:03:01.9]} 1... g6 {[%clk 0:02:59.8]} 2. g3 {[%clk 0:03:02]} 2...
Bg7 {[%clk 0:03:01]} 3. Nf3 {[%clk 0:03:03.2]} 3... Nf6 {[%clk 0:03:02.7]} 4.
Bg2 {[%clk 0:03:04.4]} 4... O-O {[%clk 0:03:04.2]} 5. O-O {[%clk 0:03:05.6]}
5... d6 {[%clk 0:03:05.8]} 6. Nc3 {[%clk 0:03:06.1]} 6... c5 {[%clk 0:03:06.4]}
7. e4 {[%clk 0:03:07.4]} 7... Nc6 {[%clk 0:03:07.4]} 8. Nh4 {[%clk 0:03:08.3]}
8... e5 {[%clk 0:03:01.9]} 9. h3 {[%clk 0:03:05.6]} 9... h6 {[%clk 0:02:49.1]}
10. Be3 {[%clk 0:03:02.5]} 10... b6 {[%clk 0:02:41.2]} 11. Qd2 {[%clk
0:03:01.4]} 11... Kh7 {[%clk 0:02:41]} 12. Rae1 {[%clk 0:03:01.7]} 12... Bb7
{[%clk 0:02:35.3]} 13. f4 {[%clk 0:02:50.1]} 13... exf4 {[%clk 0:02:34.2]} 14.
gxf4 {[%clk 0:02:51]} 14... Nxe4 {[%clk 0:02:28.7]} 15. Nxe4 {[%clk 0:02:51.7]}
15... Qxh4 {[%clk 0:02:28.5]} 16. Nxd6 {[%clk 0:02:52.7]} 16... Rae8 {[%clk
0:01:53]} 17. Nxe8 {[%clk 0:02:43.6]} 17... Rxe8 {[%clk 0:01:51.7]} 18. Bf2
{[%clk 0:02:43.8]} 18... Qd8 {[%clk 0:01:47]} 19. Rxe8 {[%clk 0:02:44.3]} 19...
Qxe8 {[%clk 0:01:48.3]} 20. Re1 {[%clk 0:02:37]} 20... Qd7 {[%clk 0:01:49]} 21.
c3 {[%clk 0:02:32.2]} 21... Ba6 {[%clk 0:01:49]} 22. Re3 {[%clk 0:02:22.8]}
22... Ne7 {[%clk 0:01:49.8]} 23. Be4 {[%clk 0:01:59.2]} 23... Nf5 {[%clk
0:01:49.8]} 24. Bxf5 {[%clk 0:01:59.5]} 24... Qxf5 {[%clk 0:01:50.7]} 25. Qe2
{[%clk 0:01:59.2]} 25... Qd5 {[%clk 0:01:42.3]} 26. Qf3 {[%clk 0:01:58.1]} 26...
Qxa2 {[%clk 0:01:40]} 27. f5 {[%clk 0:01:58.8]} 27... Qxb2 {[%clk 0:01:20]} 28.
fxg6+ {[%clk 0:01:59.4]} 28... fxg6 {[%clk 0:01:20]} 29. c4 {[%clk 0:01:45]}
29... Bc8 {[%clk 0:01:03.4]} 30. Re7 {[%clk 0:01:37.7]} 30... Bf5 {[%clk
0:00:56.9]} 31. Kg2 {[%clk 0:01:19.6]} 31... Qb1 {[%clk 0:00:49.8]} 32. d4
{[%clk 0:01:11.5]} 32... Qc2 {[%clk 0:00:41.6]} 33. dxc5 {[%clk 0:01:09.9]}
33... Qxc4 {[%clk 0:00:42.1]} 34. cxb6 {[%clk 0:01:05.3]} 34... axb6 {[%clk
0:00:39.1]} 35. Bxb6 {[%clk 0:01:05]} 35... Qc2+ {[%clk 0:00:36.8]} 36. Bf2
{[%clk 0:01:04.3]} 36... Qc4 {[%clk 0:00:32.5]} 37. Qe3 {[%clk 0:01:00.3]} 37...
Qb5 {[%clk 0:00:27.3]} 38. Qd4 {[%clk 0:00:51.2]} 38... Qc6+ {[%clk 0:00:13.7]}
39. Kh2 {[%clk 0:00:44.7]} 1-0

[Event "*** Titled Tuesday Blitz"]
[Site "Chess.com"]
[Date "2019.11.05"]
[Round "4"]
[White "LuisFSiles"]
[Black "GianmarcoVaR"]
[Result "0-1"]
[WhiteElo "2306"]
[BlackElo "2521"]
[TimeControl "180+2"]
[EndTime "13:52:02 PST"]
[Termination "GianmarcoVaR won by resignation"]

1. e4 {[%clk 0:03:01.9]} 1... c5 {[%clk 0:02:50.1]} 2. Nf3 {[%clk 0:03:01.5]}
2... d6 {[%clk 0:02:49.9]} 3. d4 {[%clk 0:03:01.8]} 3... cxd4 {[%clk 0:02:49.4]}
4. Nxd4 {[%clk 0:03:02.6]} 4... Nf6 {[%clk 0:02:50.5]} 5. Nc3 {[%clk 0:03:03.4]}
5... a6 {[%clk 0:02:51.1]} 6. Be3 {[%clk 0:03:04]} 6... e5 {[%clk 0:02:51.9]} 7.
Nb3 {[%clk 0:03:04.9]} 7... Be6 {[%clk 0:02:52.5]} 8. f3 {[%clk 0:03:03.6]} 8...
Nbd7 {[%clk 0:02:53.5]} 9. Qd2 {[%clk 0:03:02.9]} 9... b5 {[%clk 0:02:53.1]} 10.
O-O-O {[%clk 0:03:01.9]} 10... Be7 {[%clk 0:02:53.8]} 11. g4 {[%clk 0:03:01.8]}
11... b4 {[%clk 0:02:54.9]} 12. Nd5 {[%clk 0:03:00.8]} 12... Bxd5 {[%clk
0:02:55.9]} 13. exd5 {[%clk 0:03:01.6]} 13... Nb6 {[%clk 0:02:57.3]} 14. Qxb4
{[%clk 0:01:52.6]} 14... Nfxd5 {[%clk 0:02:56.7]} 15. Bxb6 {[%clk 0:01:43.1]}
15... Nxb6 {[%clk 0:02:56.3]} 16. Qe4 {[%clk 0:01:29.8]} 16... Qc7 {[%clk
0:02:32.7]} 17. f4 {[%clk 0:00:42]} 17... exf4 {[%clk 0:00:51.4]} 18. Re1 {[%clk
0:00:30.7]} 18... d5 {[%clk 0:00:45.6]} 19. Qb4 {[%clk 0:00:25]} 19... Kf8
{[%clk 0:00:24.5]} 20. Qa5 {[%clk 0:00:21.1]} 20... f3 {[%clk 0:00:19.5]} 21.
Bd3 {[%clk 0:00:21.5]} 21... g6 {[%clk 0:00:16.2]} 22. Rhf1 {[%clk 0:00:22.1]}
22... Bh4 {[%clk 0:00:14.3]} 23. Re3 {[%clk 0:00:21.6]} 23... Bg5 {[%clk
0:00:14.8]} 24. Rxf3 {[%clk 0:00:17.1]} 24... Re8 {[%clk 0:00:15.5]} 25. Qb4+
{[%clk 0:00:12.7]} 25... Kg7 {[%clk 0:00:14.2]} 26. Qd4+ {[%clk 0:00:13.5]}
26... Qe5 {[%clk 0:00:10]} 27. Qxe5+ {[%clk 0:00:09.1]} 27... Rxe5 {[%clk
0:00:10.6]} 28. Kd2 {[%clk 0:00:09.9]} 28... Rxe3 {[%clk 0:00:10.5]} 29. Rxe3
{[%clk 0:00:10.2]} 29... Re8 {[%clk 0:00:11.4]} 30. Bxa6 {[%clk 0:00:11.3]}
30... Rxe3 {[%clk 0:00:11.4]} 31. h4 {[%clk 0:00:12.2]} 31... Rxb3+ {[%clk
0:00:11.9]} 32. hxg5 {[%clk 0:00:12.2]} 32... Rxb2 {[%clk 0:00:13.1]} 33. a4
{[%clk 0:00:12.4]} 33... Nxa4 {[%clk 0:00:13.6]} 34. Bd3 {[%clk 0:00:12.3]}
34... Rb4 {[%clk 0:00:13.9]} 0-1

[Event "*** Titled Tuesday Blitz"]
[Site "Chess.com"]
[Date "2019.11.05"]
[Round "4"]
[White "Denis_Makhnyov"]
[Black "LastHeroJr"]
[Result "1-0"]
[WhiteElo "2913"]
[BlackElo "2597"]
[TimeControl "180+2"]
[EndTime "13:52:11 PST"]
[Termination "Denis_Makhnyov won by resignation"]

1. d4 {[%clk 0:03:01.9]} 1... Nf6 {[%clk 0:03:00.2]} 2. c4 {[%clk 0:03:02.8]}
2... g6 {[%clk 0:03:01.5]} 3. g3 {[%clk 0:03:03.8]} 3... Bg7 {[%clk 0:03:02.7]}
4. Bg2 {[%clk 0:03:05.3]} 4... O-O {[%clk 0:03:03.8]} 5. Nc3 {[%clk 0:03:06.8]}
5... d6 {[%clk 0:03:02.9]} 6. Nf3 {[%clk 0:03:08.1]} 6... Nbd7 {[%clk
0:03:03.2]} 7. O-O {[%clk 0:03:08.8]} 7... e5 {[%clk 0:03:04.3]} 8. e4 {[%clk
0:03:10]} 8... exd4 {[%clk 0:03:05.4]} 9. Nxd4 {[%clk 0:03:10.8]} 9... Re8
{[%clk 0:03:06.8]} 10. Qc2 {[%clk 0:03:04.8]} 10... a6 {[%clk 0:02:42]} 11. h3
{[%clk 0:03:02.5]} 11... Rb8 {[%clk 0:02:42.5]} 12. Rd1 {[%clk 0:02:39.3]} 12...
Ne5 {[%clk 0:02:02.5]} 13. c5 {[%clk 0:02:39.6]} 13... Qe7 {[%clk 0:01:42.8]}
14. cxd6 {[%clk 0:02:39.8]} 14... cxd6 {[%clk 0:01:34.4]} 15. Bg5 {[%clk
0:02:40.5]} 15... Be6 {[%clk 0:01:32.7]} 16. f4 {[%clk 0:01:46.7]} 16... Nc6
{[%clk 0:01:32.8]} 17. Nxe6 {[%clk 0:01:02.1]} 17... Qxe6 {[%clk 0:01:30.8]} 18.
Kh2 {[%clk 0:01:02.3]} 18... Rbc8 {[%clk 0:01:23.7]} 19. Qb3 {[%clk 0:01:00.7]}
19... Qxb3 {[%clk 0:00:59.7]} 20. axb3 {[%clk 0:01:02.6]} 20... h6 {[%clk
0:01:00.6]} 21. Bxf6 {[%clk 0:00:56]} 21... Bxf6 {[%clk 0:01:02.5]} 22. Rxd6
{[%clk 0:00:56.4]} 22... Be7 {[%clk 0:00:58]} 23. Rd7 {[%clk 0:00:57]} 23... Rb8
{[%clk 0:00:54.3]} 24. e5 {[%clk 0:00:56.7]} 24... Nb4 {[%clk 0:00:55.6]} 25.
Rad1 {[%clk 0:00:44.8]} 25... b5 {[%clk 0:00:53.1]} 26. h4 {[%clk 0:00:44.6]}
26... h5 {[%clk 0:00:43.8]} 27. Ra7 {[%clk 0:00:32]} 27... Bc5 {[%clk
0:00:38.6]} 28. Rc7 {[%clk 0:00:29.8]} 28... Bb6 {[%clk 0:00:39.7]} 29. Rcd7
{[%clk 0:00:31.1]} 29... Red8 {[%clk 0:00:39.5]} 30. Ne4 {[%clk 0:00:30.4]}
30... Rxd7 {[%clk 0:00:21]} 31. Rxd7 {[%clk 0:00:32.3]} 31... Bd8 {[%clk
0:00:18.1]} 32. Nd6 {[%clk 0:00:32.8]} 32... f6 {[%clk 0:00:18]} 33. e6 {[%clk
0:00:33.9]} 33... Nd3 {[%clk 0:00:14.4]} 34. Bd5 {[%clk 0:00:24]} 34... Nb4
{[%clk 0:00:13]} 35. e7+ {[%clk 0:00:23.3]} 1-0

[Event "*** Titled Tuesday Blitz"]
[Site "Chess.com"]
[Date "2019.11.05"]
[Round "4"]
[White "KL31"]
[Black "Sanan_Sjugirov"]
[Result "0-1"]
[WhiteElo "2509"]
[BlackElo "2962"]
[TimeControl "180+2"]
[EndTime "13:52:12 PST"]
[Termination "Sanan_Sjugirov won on time"]

1. d4 {[%clk 0:03:01.9]} 1... g6 {[%clk 0:03:01.9]} 2. Nf3 {[%clk 0:03:02.5]}
2... Bg7 {[%clk 0:03:03]} 3. c4 {[%clk 0:03:03.9]} 3... d6 {[%clk 0:03:03.8]} 4.
Nc3 {[%clk 0:03:05.3]} 4... Nc6 {[%clk 0:03:02.8]} 5. e4 {[%clk 0:03:01.9]} 5...
Bg4 {[%clk 0:03:02.1]} 6. d5 {[%clk 0:02:57.1]} 6... Nd4 {[%clk 0:03:00.2]} 7.
Be2 {[%clk 0:02:52.2]} 7... Bxf3 {[%clk 0:03:00.2]} 8. Bxf3 {[%clk 0:02:49.3]}
8... c5 {[%clk 0:02:43.7]} 9. O-O {[%clk 0:02:41]} 9... Nf6 {[%clk 0:02:40.2]}
10. Qd3 {[%clk 0:02:40.2]} 10... Nd7 {[%clk 0:02:36.5]} 11. Bd1 {[%clk
0:02:40.3]} 11... O-O {[%clk 0:02:31.8]} 12. f4 {[%clk 0:02:40.1]} 12... a6
{[%clk 0:02:28.6]} 13. Kh1 {[%clk 0:02:29.7]} 13... Rb8 {[%clk 0:02:14.5]} 14.
a4 {[%clk 0:02:29.9]} 14... Qa5 {[%clk 0:02:10.7]} 15. Ra3 {[%clk 0:02:19.3]}
15... Rbe8 {[%clk 0:01:27.3]} 16. Ne2 {[%clk 0:02:11.8]} 16... e6 {[%clk
0:01:13.5]} 17. Bd2 {[%clk 0:02:01]} 17... Qd8 {[%clk 0:01:11.8]} 18. Bc3 {[%clk
0:01:51.1]} 18... exd5 {[%clk 0:01:09.8]} 19. exd5 {[%clk 0:01:48.4]} 19... Nxe2
{[%clk 0:00:56.8]} 20. Bxe2 {[%clk 0:01:31]} 20... Bxc3 {[%clk 0:00:57.5]} 21.
Rxc3 {[%clk 0:01:29.6]} 21... Nf6 {[%clk 0:00:58.7]} 22. Bf3 {[%clk 0:01:11.4]}
22... Re7 {[%clk 0:00:57.1]} 23. Qd2 {[%clk 0:01:01.1]} 23... Qd7 {[%clk
0:00:53.1]} 24. b3 {[%clk 0:00:43.4]} 24... Rfe8 {[%clk 0:00:53.7]} 25. Rcc1
{[%clk 0:00:37]} 25... Qf5 {[%clk 0:00:47.2]} 26. h3 {[%clk 0:00:37.3]} 26... h5
{[%clk 0:00:47.6]} 27. Rf2 {[%clk 0:00:22.5]} 27... Re3 {[%clk 0:00:43.7]} 28.
Bd1 {[%clk 0:00:16.8]} 28... Rd3 {[%clk 0:00:20.9]} 29. Qb2 {[%clk 0:00:09.3]}
29... Re1+ {[%clk 0:00:20.7]} 30. Kh2 {[%clk 0:00:10.2]} 30... Rdxd1 {[%clk
0:00:20]} 31. Rxd1 {[%clk 0:00:05.6]} 31... Rxd1 {[%clk 0:00:21.9]} 32. Qe2
{[%clk 0:00:06.5]} 32... Qb1 {[%clk 0:00:19.9]} 33. Qe7 {[%clk 0:00:06.7]} 33...
h4 {[%clk 0:00:20]} 0-1

[Event "*** Titled Tuesday Blitz"]
[Site "Chess.com"]
[Date "2019.11.05"]
[Round "4"]
[White "arminmusovic"]
[Black "Gubajdullin"]
[Result "1-0"]
[WhiteElo "2434"]
[BlackElo "2601"]
[TimeControl "180+2"]
[EndTime "13:52:15 PST"]
[Termination "arminmusovic won on time"]

1. a3 {[%clk 0:03:01.9]} 1... e5 {[%clk 0:03:00]} 2. Nc3 {[%clk 0:03:02.9]} 2...
Nc6 {[%clk 0:03:00.4]} 3. e4 {[%clk 0:03:03.9]} 3... Bc5 {[%clk 0:03:00.5]} 4.
Nf3 {[%clk 0:03:04.8]} 4... d6 {[%clk 0:02:57.7]} 5. h3 {[%clk 0:03:05.4]} 5...
a6 {[%clk 0:02:56.6]} 6. Bc4 {[%clk 0:03:06.3]} 6... Nf6 {[%clk 0:02:56]} 7. O-O
{[%clk 0:03:06.5]} 7... O-O {[%clk 0:02:48.3]} 8. d3 {[%clk 0:03:07.6]} 8... h6
{[%clk 0:02:39.2]} 9. Be3 {[%clk 0:03:05.1]} 9... Nd7 {[%clk 0:02:28.9]} 10. Nd5
{[%clk 0:03:01.9]} 10... Kh7 {[%clk 0:02:28.8]} 11. b4 {[%clk 0:02:59.7]} 11...
Ba7 {[%clk 0:02:21.5]} 12. c3 {[%clk 0:02:32.3]} 12... Ne7 {[%clk 0:02:21.4]}
13. Bxa7 {[%clk 0:02:29.9]} 13... Rxa7 {[%clk 0:02:18]} 14. Nh2 {[%clk
0:02:21.1]} 14... Ng6 {[%clk 0:02:17.6]} 15. Ne3 {[%clk 0:02:11.4]} 15... c6
{[%clk 0:02:13.8]} 16. Nf5 {[%clk 0:02:05.5]} 16... b5 {[%clk 0:02:08.2]} 17.
Bb3 {[%clk 0:01:59.8]} 17... Nb6 {[%clk 0:02:08.1]} 18. Ne3 {[%clk 0:01:46.4]}
18... a5 {[%clk 0:02:07.8]} 19. d4 {[%clk 0:01:38]} 19... Qg5 {[%clk 0:02:05.9]}
20. Nf3 {[%clk 0:01:36.3]} 20... Qf6 {[%clk 0:02:03.2]} 21. dxe5 {[%clk
0:01:32.8]} 21... dxe5 {[%clk 0:02:03]} 22. c4 {[%clk 0:01:23.5]} 22... axb4
{[%clk 0:02:01]} 23. c5 {[%clk 0:01:18.1]} 23... Nc4 {[%clk 0:01:45.6]} 24. Bxc4
{[%clk 0:01:15.2]} 24... bxc4 {[%clk 0:01:45.7]} 25. Nxc4 {[%clk 0:01:17.1]}
25... bxa3 {[%clk 0:01:40.6]} 26. Qd6 {[%clk 0:01:11.3]} 26... a2 {[%clk
0:01:36.2]} 27. Nfxe5 {[%clk 0:00:49.3]} 27... Nxe5 {[%clk 0:01:34.3]} 28. Nxe5
{[%clk 0:00:47.2]} 28... Re8 {[%clk 0:01:15.3]} 29. Nxc6 {[%clk 0:00:40.7]}
29... Ra4 {[%clk 0:01:08.9]} 30. Qxf6 {[%clk 0:00:37.1]} 30... gxf6 {[%clk
0:01:08.8]} 31. f3 {[%clk 0:00:25.4]} 31... Bd7 {[%clk 0:01:06.5]} 32. Rf2
{[%clk 0:00:21.1]} 32... Rea8 {[%clk 0:00:59.5]} 33. Ne7 {[%clk 0:00:21.8]}
33... Bb5 {[%clk 0:00:33.6]} 34. c6 {[%clk 0:00:21.6]} 34... R8a7 {[%clk
0:00:32.7]} 35. Nd5 {[%clk 0:00:21.6]} 35... Kg7 {[%clk 0:00:27.7]} 36. Nc3
{[%clk 0:00:22.4]} 36... Rb4 {[%clk 0:00:22]} 37. Raxa2 {[%clk 0:00:22.9]} 1-0

[Event "*** Titled Tuesday Blitz"]
[Site "Chess.com"]
[Date "2019.11.05"]
[Round "4"]
[White "Pilopa"]
[Black "Msb2"]
[Result "0-1"]
[WhiteElo "2560"]
[BlackElo "2843"]
[TimeControl "180+2"]
[EndTime "13:52:16 PST"]
[Termination "Msb2 won on time"]

1. d4 {[%clk 0:03:01.9]} 1... d5 {[%clk 0:02:59.1]} 2. Nf3 {[%clk 0:03:00.5]}
2... Nf6 {[%clk 0:02:59.9]} 3. e3 {[%clk 0:03:02]} 3... Bf5 {[%clk 0:02:59.1]}
4. Bd3 {[%clk 0:03:02.9]} 4... e6 {[%clk 0:02:57.3]} 5. O-O {[%clk 0:03:02.2]}
5... Bd6 {[%clk 0:02:56]} 6. Qe2 {[%clk 0:03:03.3]} 6... O-O {[%clk 0:02:55.4]}
7. Nbd2 {[%clk 0:03:04.7]} 7... Bxd3 {[%clk 0:02:41.2]} 8. Qxd3 {[%clk
0:03:04.1]} 8... c5 {[%clk 0:02:40.9]} 9. e4 {[%clk 0:02:58.8]} 9... c4 {[%clk
0:02:33.5]} 10. Qe2 {[%clk 0:02:58.1]} 10... Be7 {[%clk 0:02:34.3]} 11. c3
{[%clk 0:02:52.3]} 11... Nc6 {[%clk 0:02:34.2]} 12. Re1 {[%clk 0:02:47.6]} 12...
Re8 {[%clk 0:02:33.8]} 13. e5 {[%clk 0:02:37.9]} 13... Nd7 {[%clk 0:02:34.9]}
14. Nf1 {[%clk 0:02:39.3]} 14... b5 {[%clk 0:02:36.5]} 15. Ng3 {[%clk
0:02:34.4]} 15... b4 {[%clk 0:02:37.6]} 16. Nh5 {[%clk 0:02:26.5]} 16... Nf8
{[%clk 0:02:16.6]} 17. Bd2 {[%clk 0:02:12.5]} 17... Rb8 {[%clk 0:02:15.1]} 18.
h4 {[%clk 0:02:00.3]} 18... bxc3 {[%clk 0:02:13]} 19. bxc3 {[%clk 0:01:58.1]}
19... Rb2 {[%clk 0:02:05.6]} 20. Rab1 {[%clk 0:01:54.7]} 20... Qb6 {[%clk
0:02:02.2]} 21. Rxb2 {[%clk 0:01:51.4]} 21... Qxb2 {[%clk 0:02:04.1]} 22. Ng5
{[%clk 0:01:42.8]} 22... Ng6 {[%clk 0:01:51.9]} 23. g3 {[%clk 0:01:41]} 23...
Qc2 {[%clk 0:01:48.7]} 24. Rc1 {[%clk 0:00:57.8]} 24... Qxa2 {[%clk 0:01:42.8]}
25. Qd1 {[%clk 0:00:52.4]} 25... Qb3 {[%clk 0:01:39.8]} 26. Qf3 {[%clk
0:00:51.2]} 26... Rf8 {[%clk 0:01:38.8]} 27. Nxg7 {[%clk 0:00:43.2]} 27... Kxg7
{[%clk 0:01:34.1]} 28. Qh5 {[%clk 0:00:37.1]} 28... Rh8 {[%clk 0:01:20.4]} 29.
Qf3 {[%clk 0:00:20.4]} 29... Nd8 {[%clk 0:01:14.6]} 30. h5 {[%clk 0:00:19.4]}
30... h6 {[%clk 0:01:16.1]} 31. Nxf7 {[%clk 0:00:14.9]} 31... Nxf7 {[%clk
0:01:08.3]} 32. hxg6 {[%clk 0:00:16.1]} 32... Nd8 {[%clk 0:01:06.9]} 33. Ra1
{[%clk 0:00:09.6]} 33... Qb7 {[%clk 0:01:02.2]} 34. Qg4 {[%clk 0:00:09.7]} 34...
Qd7 {[%clk 0:01:02.2]} 35. f4 {[%clk 0:00:08.1]} 35... h5 {[%clk 0:01:01.6]} 36.
Qf3 {[%clk 0:00:05.4]} 36... Kxg6 {[%clk 0:00:51.7]} 37. f5+ {[%clk 0:00:06.4]}
37... exf5 {[%clk 0:00:53.2]} 38. Ra6+ {[%clk 0:00:07.7]} 38... Ne6 {[%clk
0:00:54.1]} 39. Ra5 {[%clk 0:00:06.3]} 39... Qb7 {[%clk 0:00:51.1]} 40. Kh2
{[%clk 0:00:02.5]} 40... Qb2 {[%clk 0:00:48.7]} 41. Qe2 {[%clk 0:00:02.4]} 41...
Bg5 {[%clk 0:00:47.1]} 42. Ra6 {[%clk 0:00:03.1]} 42... Re8 {[%clk 0:00:44.7]}
0-1

[Event "*** Titled Tuesday Blitz"]
[Site "Chess.com"]
[Date "2019.11.05"]
[Round "4"]
[White "Vamostodorecto"]
[Black "Rhinos1"]
[Result "1-0"]
[WhiteElo "2439"]
[BlackElo "2060"]
[TimeControl "180+2"]
[EndTime "13:52:18 PST"]
[Termination "Vamostodorecto won on time"]

1. d4 {[%clk 0:03:00.8]} 1... Nf6 {[%clk 0:03:00.6]} 2. c4 {[%clk 0:03:01]} 2...
g6 {[%clk 0:03:01.1]} 3. Nc3 {[%clk 0:03:01.4]} 3... Bg7 {[%clk 0:03:02.5]} 4.
e4 {[%clk 0:03:01.6]} 4... d6 {[%clk 0:03:04.1]} 5. Be2 {[%clk 0:03:02.7]} 5...
O-O {[%clk 0:03:05]} 6. Nf3 {[%clk 0:03:03.9]} 6... e5 {[%clk 0:03:05.5]} 7. O-O
{[%clk 0:03:04.5]} 7... Nc6 {[%clk 0:03:06.3]} 8. d5 {[%clk 0:03:05.9]} 8... Ne7
{[%clk 0:03:07.6]} 9. Ne1 {[%clk 0:03:07.6]} 9... Nd7 {[%clk 0:03:07.7]} 10. Be3
{[%clk 0:03:09.3]} 10... f5 {[%clk 0:03:08.7]} 11. f3 {[%clk 0:03:10.7]} 11...
f4 {[%clk 0:03:10.1]} 12. Bf2 {[%clk 0:03:12.3]} 12... g5 {[%clk 0:03:10.4]} 13.
Rc1 {[%clk 0:03:13.7]} 13... h5 {[%clk 0:02:55.7]} 14. c5 {[%clk 0:03:13.8]}
14... Nxc5 {[%clk 0:02:36.2]} 15. b4 {[%clk 0:03:09.5]} 15... Na6 {[%clk
0:02:29.8]} 16. Nb5 {[%clk 0:03:11.1]} 16... Ng6 {[%clk 0:02:19.5]} 17. Rc4
{[%clk 0:03:10]} 17... Rf7 {[%clk 0:02:15.4]} 18. Qc2 {[%clk 0:03:09.8]} 18...
g4 {[%clk 0:02:09.8]} 19. Kh1 {[%clk 0:03:09.3]} 19... Bf8 {[%clk 0:02:06.2]}
20. Nd3 {[%clk 0:03:07.9]} 20... Rg7 {[%clk 0:01:38.4]} 21. Rc1 {[%clk
0:03:07.5]} 21... Nh4 {[%clk 0:01:16.7]} 22. Ne1 {[%clk 0:01:52.1]} 22... g3
{[%clk 0:01:04.6]} 23. Bg1 {[%clk 0:01:51]} 23... gxh2 {[%clk 0:00:58.5]} 24.
Bf2 {[%clk 0:01:51.3]} 24... Bd7 {[%clk 0:00:37.4]} 25. Nxc7 {[%clk 0:01:49.4]}
25... Nxc7 {[%clk 0:00:39.3]} 26. Rxc7 {[%clk 0:01:51.3]} 26... Qg5 {[%clk
0:00:36]} 27. Bf1 {[%clk 0:01:43.8]} 27... Ng6 {[%clk 0:00:29]} 28. Rxb7 {[%clk
0:00:56.8]} 28... h4 {[%clk 0:00:24.9]} 29. Rxa7 {[%clk 0:00:48.4]} 29... Re8
{[%clk 0:00:18.4]} 30. Rxd7 {[%clk 0:00:47.4]} 30... Rxd7 {[%clk 0:00:19]} 31.
Bb5 {[%clk 0:00:48.9]} 31... Ree7 {[%clk 0:00:14.8]} 32. Bxd7 {[%clk 0:00:49.4]}
32... Rxd7 {[%clk 0:00:16.7]} 33. Qc8 {[%clk 0:00:51]} 33... Qe7 {[%clk
0:00:09.7]} 34. b5 {[%clk 0:00:47.7]} 34... h3 {[%clk 0:00:10.9]} 35. b6 {[%clk
0:00:46.6]} 35... hxg2+ {[%clk 0:00:11.2]} 36. Nxg2 {[%clk 0:00:48.5]} 36... Qg7
{[%clk 0:00:06.8]} 37. Rc7 {[%clk 0:00:45.5]} 37... Rxc7 {[%clk 0:00:04.4]} 38.
bxc7 {[%clk 0:00:47.4]} 1-0